Workbook

Sheet Introduction
I1: www.myChemE.com
C2: Standard Line Sizing Spreadsheet For Steam
A5: Introduction
A6: This spreadsheet can be used to calculate pressure drops in steam lines, taking account fittings (such as bends,
A7: valves and other equipment items).
A9: The spreadsheet is split into the following sections
A11: - | B11: A "How to Use This Calculation" Worksheet
A12: - | B12: The Pressure Drop Calculation Worksheet itself - marked "Calculation"
A13: - | B13: A Theory Worksheet which presents the equations used in the calculation.
A15: It is recommended that the user first reads the 'How to Use These Calculation' worksheet before starting a
A16: calculation.
A19: Revision
A20: Rev. 1 | B20: Initial issue | H20: 2010-02-20
A28: Disclaimer: This calculation provides an estimate for estimating pressure drops in steam pipelines. We cannot be held
A29: responsible for its use. As with all areas of process engineering, calculations should be checked by a competent engineer.

Sheet Calculation
A1: Standard Line Sizing Spreadsheet For Steam
F2: Revision 1
A3: Steam Properties provided by:
A5: See 'How to use these Calculation' worksheet for notes on its use.
A6: Calculation Title:
A8: From:
A9: To:
A10: Pressure & Temperature Data
A11: Upstream Pressure | B11: bar (g) | C11: 1 | D11: =C39 -> #NAME? | E11: #NAME? | F11: #NAME?
A12: Temperature | B12: degC | C12: 200 | D12: =C12 -> 200 | E12: 200 | F12: 200
A13: Steam Properties Data
A14: Phase | C14: =IF(region_pt((C11+1.01325)/10,C12+273.15)=2,"Steam",IF(region_pt((C11+1.01325)/10,C12+273.15)=1,"Liquid","ERROR")) -> #NAME? | D14: #NAME? | E14: #NAME? | F14: #NAME?
A15: Steam Viscosity | B15: Cp | C15: =my_pT((C11+1.01325),C12)*1000 -> #NAME? | D15: #NAME? | E15: #NAME? | F15: #NAME?
A16: Steam Density | B16: kg/m3 | C16: =rho_pT((C11+1.01325),C12) -> #NAME? | D16: #NAME? | E16: #NAME? | F16: #NAME?
A17: Pipe Data
A18: Nominal Line Diameter | B18: inches | C18: 2 | D18: 0.75 | E18: 0.75 | F18: 0.75
A19: Pipe Schedule | C19: 80 | D19: 40 | E19: 40 | F19: 40
A20: Pipe Material Type | C20: Steel (New) | D20: Steel (New) | E20: Steel (New) | F20: Steel (New)
A21: Internal Diameter | B21: inches | C21: =HLOOKUP(C18,$C76:$S88,C73,FALSE) -> 1.939 | D21: 0.824 | E21: 0.824 | F21: 0.824
A22: Internal Diameter | B22: mm | C22: =C21*25.4 -> 49.2506 | D22: 20.9296 | E22: 20.9296 | F22: 20.9296
A23: Flowrates
A24: Mass Flow | B24: kg/h | C24: 200 | D24: =C24 -> 200 | E24: 200 | F24: 200
A25: Volumetric Flow | B25: m3/h | C25: =C24/C16 -> #NAME? | D25: #NAME? | E25: #NAME? | F25: #NAME?
A26: Line Velocity | B26: m/s | C26: =IF(region_pt((C11+1.01325)/10,C12+273.15)=2,C24/3600/C16/C60,"ERROR") -> #NAME? | D26: =D24/3600/D16/D60 -> #NAME? | E26: #NAME? | F26: #NAME?
A27: Pres drop per 100m | B27: bar/100m | C27: =(4*C67*C16/(C22/1000)*C26^2/2)/100000*100 -> #NAME? | D27: #NAME? | E27: #NAME? | F27: #NAME?
A28: Line Losses
A29: Pipe Length | B29: m | C29: 120 | D29: 0 | E29: 0 | F29: 0
A30: Number of 90o bends | C30: 25 | D30: 0 | E30: 0 | F30: 0
A31: Number of valves | C31: 5 | D31: 0 | E31: 0 | F31: 0
A32: Check Valves | C32: 0 | D32: 0 | E32: 0 | F32: 0
A33: T-Piece straight run | C33: 0 | D33: 0 | E33: 0 | F33: 0
A34: T-Piece as elbow | C34: 0 | D34: 0 | E34: 0 | F34: 0
A35: Other Pressure Drops
A36: Other Pressure Drops | B36: bar | C36: 0 | D36: 0 | E36: 0 | F36: 0
A37: Summary
A38: Total Pressure Drop | B38: bar | C38: =C26^2/2*C68*C16/100000+C36 -> #NAME? | D38: #NAME? | E38: #NAME? | F38: #NAME?
A39: Downstream Pressure | B39: bar (g) | C39: =C11-C38 -> #NAME? | D39: #NAME? | E39: #NAME? | F39: #NAME?
A41: Notes
A47: This spreadsheet calcluates pressure drop based on the upstream steam conditions. Consequently, the
A48: calculated pressure drop will be an underestimate. To obtain reasonable accuracy ensure that the total pressure
A49: drop is not more than 10% of the upstream pressure in each column. See "How to Use This Calculation" for
A50: details.
A52: Disclaimer: This calculation provides an estimate for estimating pressure drops in steam pipelines. We cannot be held
A53: responsible for its use. As with all areas of process engineering, calculations should be checked by a competent engineer.
A59: Pressure Drop Correlation
A60: Pipe X-Sectional Area | B60: sq.m | C60: =PI()*(C22/1000)^2/4 -> 0.00190507875 | D60: 0.0003440422173 | E60: 0.0003440422173 | F60: 0.0003440422173
A61: Reynolds Number, Re | C61: =C26*C22/1000*C16/(C15*0.001) -> #NAME? | D61: #NAME? | E61: #NAME? | F61: #NAME?
A62: Pipe roughness, e | B62: mm | C62: =IF(C20="Steel (New)",0.05,IF(C20="Tubing/Glass",0.002,IF(C20="Cast Iron",0.26,IF(C20="Concrete",0.3,IF(C20="Riveted Steel",5,""))))) -> 0.05 | D62: 0.05 | E62: 0.05 | F62: 0.05
A63: e/d | C63: =C62/C22 -> 0.001015216058 | D63: 0.002388961089 | E63: 0.002388961089 | F63: 0.002388961089
A64: Churchill Correlation
A65: A | C65: =(2.457*LN(1/((7/C61)^0.9+0.27*(C63))))^16 -> #NAME? | D65: #NAME? | E65: #NAME? | F65: #NAME?
A66: B | C66: =(37530/C61)^16 -> #NAME? | D66: #NAME? | E66: #NAME? | F66: #NAME?
A67: Fanning friction factor, f | C67: =2*((8/C61)^12+1/(C66+C65)^1.5)^(1/12) -> #NAME? | D67: #NAME? | E67: #NAME? | F67: #NAME?
A68: Number of velocity heads | C68: =C67*4*C29/(C22/1000)+C30*0.8+C31*1.2+C32*1.5+0.1*C33+C34*0.8 -> #NAME? | D68: #NAME? | E68: #NAME? | F68: #NAME?
A72: Piping Dimensions
A73: Lookup Table Reference | C73: =IF(C19="5S",2,IF(C19="10S",3,IF(C19<60,C19/10+2,C19/20+4))) -> 8 | D73: 6 | E73: 6 | F73: 6 | G73: =IF(G31="5S",2,IF(G31="10S",3,IF(G31<60,G31/10+2,G31/20+4))) -> 2 | H73: 2 | I73: 2 | J73: 2
A75: LOOK UP TABLE FOR PIPE DIMENSIONS
A76: Pipe Nominal Diameter (Inches) | C76: 0.5 | D76: 0.75 | E76: 1 | F76: 1.5 | G76: 2 | H76: 3 | I76: 4 | J76: 5 | K76: 6 | L76: 8 | M76: 10 | N76: 12 | O76: 14 | P76: 16 | Q76: 18 | R76: 20 | S76: 22
A77: Schedule | B77: 5S | C77: 0.71 | D77: 0.92 | E77: 1.185 | F77: 1.77 | G77: 2.245 | H77: 3.334 | I77: 4.334 | J77: 5.345 | K77: 6.407 | L77: 8.407 | M77: 10.482 | N77: 12.438 | O77: 13.688 | P77: 15.67 | Q77: 17.67 | R77: 19.624 | S77: 21.624
B78: 10S | C78: =0.674 -> 0.674 | D78: 0.884 | E78: 1.097 | F78: 1.682 | G78: 2.157 | H78: 3.26 | I78: 4.26 | J78: 5.295 | K78: 6.357 | L78: 8.329 | M78: 10.42 | N78: 12.39 | O78: 13.624 | P78: 15.624 | Q78: 17.624 | R78: 19.564 | S78: 21.564
B79: 20 | C79: ERROR | D79: ERROR | E79: ERROR | F79: ERROR | G79: ERROR | H79: ERROR | I79: ERROR | J79: ERROR | K79: ERROR | L79: 8.125 | M79: 10.25 | N79: 12.25 | O79: 13.376 | P79: 15.376 | Q79: 17.376 | R79: 19.25 | S79: 21.25
B80: 30 | C80: ERROR | D80: ERROR | E80: ERROR | F80: ERROR | G80: ERROR | H80: ERROR | I80: ERROR | J80: ERROR | K80: ERROR | L80: 8.071 | M80: 10.136 | N80: 12.09 | O80: 13.25 | P80: 15.25 | Q80: 17.124 | R80: 19 | S80: 21
B81: 40 | C81: 0.622 | D81: 0.824 | E81: 1.049 | F81: 1.61 | G81: 2.067 | H81: 3.068 | I81: 4.026 | J81: 5.047 | K81: 6.065 | L81: 7.981 | M81: 10.02 | N81: 11.938 | O81: 13.124 | P81: 15 | Q81: 16.876 | R81: 18.812
B82: 60 | C82: ERROR | D82: ERROR | E82: ERROR | F82: ERROR | G82: ERROR | H82: ERROR | I82: ERROR | J82: ERROR | K82: ERROR | L82: 7.813 | M82: 9.76 | N82: 11.626 | O82: 12.812 | P82: 14.688 | Q82: 16.5 | R82: 18.376 | S82: 20.25
B83: 80 | C83: 0.546 | D83: 0.742 | E83: 0.957 | F83: 1.5 | G83: 1.939 | H83: 2.9 | I83: 3.826 | J83: 4.813 | K83: 5.761 | L83: 7.625 | M83: 9.562 | N83: 11.374 | O83: 12.5 | P83: 14.312 | Q83: 16.124 | R83: 17.938 | S83: 19.75
B84: 100 | C84: ERROR | D84: ERROR | E84: ERROR | F84: ERROR | G84: ERROR | H84: ERROR | I84: ERROR | J84: ERROR | K84: ERROR | L84: 7.437 | M84: 9.312 | N84: 11.062 | O84: 12.124 | P84: 13.938 | Q84: 15.688 | R84: 17.438 | S84: 19.25
B85: 120 | C85: ERROR | D85: ERROR | E85: ERROR | F85: ERROR | G85: ERROR | H85: ERROR | I85: 3.624 | J85: 4.563 | K85: 5.501 | L85: 7.187 | M85: 9.062 | N85: 10.75 | O85: 11.812 | P85: 13.562 | Q85: 15.25 | R85: 17 | S85: 18.75
B86: 140 | C86: ERROR | D86: ERROR | E86: ERROR | F86: ERROR | G86: ERROR | H86: ERROR | I86: ERROR | J86: ERROR | K86: ERROR | L86: 7.001 | M86: 8.75 | N86: 10.5 | O86: 11.5 | P86: 13.124 | Q86: 14.876 | R86: 16.5 | S86: 18.25
B87: 160 | C87: 0.466 | D87: 0.612 | E87: 0.815 | F87: 1.338 | G87: 1.687 | H87: 2.624 | I87: 3.438 | J87: 4.313 | K87: 5.187 | L87: 6.813 | M87: 8.5 | N87: 10.126 | O87: 11.188 | P87: 12.812 | Q87: 14.438 | R87: 16.062 | S87: 17.75
B88: XS | C88: 0.546 | D88: 0.742 | E88: 0.957 | F88: 1.5 | G88: 1.939 | H88: 2.9 | I88: 3.826 | J88: 4.813 | K88: 5.761 | L88: 7.625 | M88: 9.76 | N88: 11.75 | O88: 13 | P88: 15 | Q88: 17 | R88: 19 | S88: 21
B89: XXS | C89: 0.252 | D89: 0.434 | E89: 0.599 | F89: 1.1 | G89: 1.503 | H89: 2.3 | I89: 3.152 | J89: 4.063 | K89: 4.897 | L89: 6.875 | M89: 8.75 | N89: 10.75 | O89: ERROR | P89: ERROR | Q89: ERROR | R89: ERROR | S89: ERROR
A92: PIPE DIAMETERS
A93: 0.5
A94: 0.75
A95: 1
A96: 1.5
A97: 2
A98: 3
A99: 4
A100: 5
A101: 6
A102: 8
A103: 10
A104: 12
A105: 14
A106: 16
A107: 18
A108: 20
A109: 22
A111: PIPE TYPES LIST
A112: Tubing/Glass | B112: 0.002 | C112: mm
A113: Steel (New) | B113: 0.05 | C113: mm
A114: Steel (Corroded) | B114: 1 | C114: mm
A115: Cast Iron | B115: 0.26 | C115: mm
A116: Concrete | B116: 0.3 | C116: mm
A117: Riveted Steel | B117: 5 | C117: mm

Sheet How to Use This Calculation
I1: www.myChemE.com
A2: Standard Line Sizing Spreadsheet For Steam | I2: Revision 1
A4: HOW TO USE THIS CALCULATION
A6: 1.0 | B6: Introduction
A7: This spreadsheet can be used to calculate pressure drops in steam pipelines, taking account of inline fittings
A8: (such as bends, valves and other equipment items).
A10: The spreadsheet has four columns which link from one to the next. This can be used to break a piping system
A11: down into a number of component sections, if needed.
A13: 2.0 | B13: How to use this spreadsheet
A15: 2.1 | B15: Colour Coding
B16: The following colour coding is used:
C18: Boxes shaded light green require a user input.
C20: Boxes shaded light blue give a calculated output.
A22: 2.2 | B22: Calculation Description
B23: The spreadsheet leaves space to add a Calculation Title at the top, and a Notes Section at the bottom
B24: of the sheet. At the top of the calculation column are two boxes ('To' and 'From') to indicate the pipe
B25: route.
B27: Although these items are not strictly necessary, they help describe the calculation - this can be
B28: invaluable it is to be checked by another engineer. The 'To' and 'From' Sections are particularly useful
B29: if the calculation is split over several columns.
A31: 2.3 | B31: Pressure & Temperature Data
B32: The user enters the upstream pressure and the steam temperature in the first column. The spreadsheet
B33: then calculates the downstream pressure - based on the flow, physical property and pipeline data entered
B34: (see below). The downstream pressure from the first column is transferred across to the upstream pressure
B35: of the second column, thus allowing a pipework network to be built up.
B37: The steam temperature is copied across to the other columns (although this can be overwritten, if required).
A39: 2.4 | B39: Steam Properties
B40: The spreadsheet calculates steam properties (i.e. steam density and viscosity) using IAPWS Steam IF97
B41: and IAPWS "Revised Release on the IAPWS Formulation 1985 for the Viscosity of Ordinary Water
B42: substance".
B44: These values use Macros taken from electronic steam tables provided from:
D46: http://www.x-eng.com
B48: IAPWS defines the water-steam thermodynamic system into 5 regions, these are:
C50: Region 1 for the liquid state from low to high pressures,
C51: Region 2 for the vapor and ideal gas state,
C52: Region 3 for the thermodynamic state around the critical point,
C53: Region 4 for the saturation curve (vapor-liquid equilibrium),
C54: Region 5 for high temperatures above 1073.15 K (800 °C) & pressures up to 10 MPa (100 bar).
B56: The steam properties are calculated for region 2 only. For temperatures and pressures outside this range,
B57: the spreadsheet returns an error message. A further discussion on IAPWS can be found here
D59: =HYPERLINK("http://www.cheresources.com/iapwsif97.shtml","IAPSW Link") -> IAPSW Link
A61: 2.5 | B61: Pipe Data
B63: 2.5.1 | C63: Nominal Pipe Diameter
C64: The spreadsheet allows the user to choose from a range of nominal pipe diameters. Available
C65: nominal pipe sizes are: ½", ¾", 1", 1½", 2", 3", 4", 5", 6", 8", 10", 12", 14", 16", 18", 20"
C66: and 22".
B68: 2.5.2 | C68: Pipe Schedule
C69: The spreadsheet allows the user to choose from a range of available pipe schedules
C70: (thicknesses) - these are: 5S, 10S, 20, 30, 40, 60, 80, 100, 120, 140, 160, XS and XXS.
C72: By entering the nominal diameter and schedule, the spreadsheet automatically retrieves the
C73: correct internal diameter of the pipe. It should be noted that not all combinations of nominal
C74: diameter and schedule are permissible; if the wrong combination is selected the spreadsheet
C75: displays an error. A list of standard pipe sizes can be found by clicking on the link below:
D77: =HYPERLINK("http://www.mycheme.com/index.php?option=com_content&view=article&id=53:pipe-sizes&catid=37:tech-data&Itemid=58","List of Standard Pipesizes") -> List of Standard Pipesizes
C79: On occasions, the user may wish to calculate a pressure drop for a non-standard pipe. In this
C80: case, the user can simply over write the internal diameter cell on the spreadsheet (either in
C81: inches or mm).
B83: 2.5.3 | C83: Pipe Schedule
C84: The pressure drop per unit length is affected by the pipe surface roughness - which depends
C85: on the materials of construction. The spreadsheet is provided with a range of possible pipe
C86: material types: glass/tubing, steel (new), steel (corroded), concrete and riveted steel. By
C87: selecting the piping material type, the spreadsheet automatically sets the surface roughness.
A89: 2.6 | B89: Flowrates
B90: The user enters the required steam mass flowrate in kg per hour. The spreadsheet then calculates the
B91: volumetric flowrate (in m3/s), the line velocity (m/s) and the pressure drop per unit length.
B92: (in bar/100m).
B94: The calculated line velocity and pressure drop per unit length can be used to assess whether the pipe
B95: diameter is reasonable for the required flowrate.
A97: 2.7 | B97: Line Losses
B98: The spreadsheet can now be used to determine the line losses (pressure drop) through the system. The
B99: user enters the total pipe length, as well as the number of inline fittings (bends, valves and Tee-junctions).
B100: The spreadsheet then calculates the line losses - see Summary Section below.
A102: 2.8 | B102: Other Pressure Drops
B103: As well as line losses, the spreadsheet allows the user to enter other pressure drops not accounted for in.
B104: the line losses. These could be:
C106: - | D106: Pressure drops due to orifice plates.
C107: - | D107: Pressure drops due to inline instrumentation.
C108: - | D108: Pressure drops due to control valves
C109: - | D109: Pressure drops due to equipment items
B111: Changes in pressure as a result of changes in elevation are invariably negligible in steam lines and are
B112: ignored.
A114: 2.9 | B114: Summary
B115: The summary section provides a summary of the total pressure drop and the calculated downstream
B116: pressure.
B118: Unlike water and other liquids, steam is compressible. Therefore, its density changes with pressure. If the
B119: pressure drop calculated is too great, the density and line velocity will change appreciably. This will result in
B120: errors in the calculation. It is worth noting that as this method uses the density at the upstream conditions,
B121: the spreadsheet will under-estimate the actual pressure drop.
B123: To obtain reasonable accuracy ensure that the total pressure drop in each column is no more that 10% of
B124: the upstream pressure. If the pressure drop is greater than 10%, split the calculation over more than one
B125: column (See Section 3, "Building a Piping Network" below).
A127: 3.0 | B127: Building a Piping Network
A128: For pressure drop calculations down a single pipe, only the first column of the pressure drop calculation needs to
A129: be used. The other three calculation columns can be ignored.
A131: However, for more complex piping systems, the other calculation columns can be used to build up a piping network
A132: This can be very useful if, for example, the user needs to determine pressure drop in distribution systems.
A134: To make this easier, the downstream pressure of the first column is used as the upstream pressure of the second
A135: column and so on. The physical property and flowrate data entered in the first column is copied across to the
A136: other three columns to make it easier to set up a network - these values can be overwritten, if required.

Sheet Theory
A1: Revision: 1 | I1: www.myChemE.com
A2: Standard Line Sizing Spreadsheet For Steam
A4: CALCULATION THEORY
A6: 1.0 | B6: Introduction
A7: This spreadsheet can be used to calculate pressure drops in pipelines, taking account of inline fittings (such as
A8: bends, valves and other equipment items. To use the spreadsheet, follow the instructions given in the "How to
A9: Use this Spreadsheet" Worksheet.
A11: This worksheet presents the equations and algorithms used in the calculation and discusses elements of fluid flow
A12: theory.
A14: 2.0 | B14: Calculation of Pressure Drop
A16: 2.1 | B16: Determining Pipe Dimensions
B17: Commercial pipes come in standard sizes, specified in terms of the nominal pipe diameter, and the pipe
B18: schedule. The spreadsheet has this information already stored within the calculation worksheet, linked
B19: to the internal diameter (in inches). The spreadsheet retrieves the correct internal diameter using a Lookup
B20: command.
B22: The internal diameter, d, (in metres) is used to calculate the cross-sectional flow area, A, (in square metres)
B23: using Equation 1:
A30: 2.3 | B30: Determining Steam Properties
B31: Steam physical properties (i.e. density and viscosity) are taken from IAPWS Steam IF97 and IAPWS
B32: "Revised Release on the IAPWS Formulation 1985 for the Viscosity of Ordinary Water substance". More
B33: information is available via the following link:
D35: =HYPERLINK("http://www.cheresources.com/iapwsif97.shtml","IAPSW Link") -> IAPSW Link
A37: 2.3 | B37: Determining the Line Velocity
B38: The line velocity, u, (in m/s) is calculated using Equation 2:
B44: Where:
C45: m - | D45: Mass flowrate (in kg/s)
C46: A - | D46: Cross-sectional flow area (in m2)
A48: 2.4 | B48: Calculation of the Reynolds Number
B49: The Reynolds number is a dimensionless group giving a measure of whether to flow is laminar or turbulent.
B50: It is used to estimate the friction factor (see below). A discussion on Reynolds Number and its importance
B51: can be found via the following link:
E52: =HYPERLINK("http://en.wikipedia.org/wiki/Reynolds_number","Reynolds Number") -> Reynolds Number
B54: The Reynolds number, Re, is calculated using Equation 3:
B60: Where
C61: m - | D61: Viscosity (in Pa.s)
A63: 2.4 | B63: Calculation of the Pipe Relative Roughness
B64: The pressure drop from flow down a pipe - at least in turbulent flow - is affected by the roughness of the
B65: pipe surface. Obviously, the pipe roughness is determined by the pipe materials of construction. The
B66: spreadsheet provides typical pipe roughness values for a range of materials i.e.
C68: Materials | E68: Pipe Roughness
C69: Tubing/Glass | E69: =0.002/1000 -> 2e-06 | F69: m
C70: Steel (New) | E70: =0.05/1000 -> 5e-05 | F70: m
C71: Steel (Corroded) | E71: =1/1000 -> 0.001 | F71: m
C72: Cast Iron | E72: =0.26/1000 -> 0.00026 | F72: m
C73: Concrete | E73: =0.3/1000 -> 0.0003 | F73: m
C74: Riveted Steel | E74: =5/1000 -> 0.005 | F74: m
C75: Table 1: Roughness values for different pipe materials
B77: The effect of pipe roughness becomes less important as the pipe diameter increases, thus the spreadsheet
B78: calculates the pipe roughness relative to the pipe diameter using Equation 4.
B84: Where:
C85: e - | D85: Pipe roughness (in m)
C86: d - | D86: Pipe internal diameter (in m)
A88: 2.5 | B88: Calculation of the Fanning Friction Factor
B89: The Fanning Friction Factor is a dimensionless number which, along with the pipe velocity, can be used to
B90: estimate the pressure drop of flow down a pipe. It is a function of the Reynolds number and, for turbulent
B91: flow, the pipe relative roughness. An introduction to the Fanning Friction Factor can be found via the
B92: following link:
D93: =HYPERLINK("http://en.wikipedia.org/wiki/Fanning_friction_factor","Fanning Friction Factor") -> Fanning Friction Factor
B95: The Fanning Friction Factor can be determined from Charts (Moody Diagram) or by using an empirical
B96: equation. A number of Friction Factor Correlations are available in the literature, the one used in this
B97: spreadsheet is the Churchill Correlation see Equations 5, 6 and 7.
B105: Where
B114: and
B121: The Churchill Correlation is used as it is applicable to both laminar and turbulent flow - this is not the case
B122: all correlations.
B124: It should be noted that the Fanning Friction Factor is NOT the same as other Friction Factors: i.e. Darcy
B125: and Moody
A127: 2.6 | B127: Calculation of the Pressure Drop per Unit Length of Straight Pipe
B128: The pressure loss as steam flows down a straight length of pipe is given by the Darcy Equation. This
B129: is expressed in Equation 8 below.
B136: Where
C137: DPPipe - | D137: Pipe line pressure drop (in Pa)
C138: LPipe - | D138: Pipe length (in m)
B141: An introduction to the Darcy Equation is given via the attached link:
C143: =HYPERLINK("http://en.wikipedia.org/wiki/Darcy%E2%80%93Weisbach_equation","Introduction to the Darcy Equation") -> Introduction to the Darcy Equation
B145: It should be noted that the form of the equation presented via this link uses the Darcy Friction Factor, which
B146: is four times larger than the Fanning Friction Factor. Equation 8 can be adapted to calculate the Pressure
B147: per 100 metres by setting LPipe to 100 and converting from Pa to Bar - see Equation 9.
A155: 2.7 | B155: Calculation of the Pressure Drop Through Pipe Fittings
B156: The Pressure Drop through pipe fittings (e.g. Pipe bends, Valves, T-Pieces) can be expressed in terms of
B157: a Resistance Coefficient, K, where:
B164: N.B. It can be seen from Equations 8 and 10 that the Resistance Coefficient equates to (4fFanningL)/d for
B165: a straight length of pipe. The spreadsheet uses the following Resistance Coefficients for different pipe
B166: fittings
C168: Fitting | F168: Resistance Coeff, K
E169: 90o Bends | F169: 0.8
E170: Valve | F170: 1.2
E171: Check Valve | F171: 1.5
E172: Straight Tee piece | F172: 0.1
E173: Thru' Tee Piece | F173: 0.7
C174: Table 2: Resistance Coefficient for different pipe fittings
B176: Obviously, these values are approximate as K is affected by factors such as radius of the bend and the
B177: valve design. A detailed list of Resistance Coefficients for different pipe fittings is given in Cranes' Flow
B178: of Fluids book - see link below.
D180: =HYPERLINK("http://www.flowoffluids.com/","Flow of Fluids Technical Guide ") -> Flow of Fluids Technical Guide
B182: The Line Losses value given in the spreadsheet is the sum of the DPPipe and DPFittings.
